[Event "FIN-ch 2018"]
[Site "Helsinki"]
[Date "2018.06.18"]
[Round "8"]
[White "Keinanen, Toivo"]
[Black "Koykka, Pekka"]
[Result "1-0"]
[ECO "A37"]
[WhiteElo "2341"]
[BlackElo "2345"]
[Annotator "NA"]
[PlyCount "57"]
[EventDate "2018.06.13"]
[EventType "tourn"]
[EventCountry "FIN"]
[SourceTitle "playchess.com"]
[Source "ChessBase"]
[SourceQuality "1"]
[TimeControl "40/5400+30:1800+30"]

1. Nf3 {[%emt 0:00:00]} c5 {[%emt 0:05:12]} 2. c4 {[%emt 0:02:39]} Nc6 {[%emt 0:01:34]} 3. g3 {[%emt 0:00:36]} g6 {[%emt 0:00:15]} 4. Bg2 {[%emt 0:00:38]} Bg7 {[%emt 0:00:07]} 5. Nc3 {[%emt 0:00:55]} d6 {[%emt 0:00:28]} 6. a3 {[%emt 0:02:05]} e6 {[%emt 0:01:42]} 7. O-O {[%emt 0:11:16]} Nge7 {[%emt 0:01:10] LiveBook: 101 Games} 8. d3 {[%emt 0:03:22]} O-O {[%emt 0:01:00]} 9. Bg5 {[%emt 0:00:10]} h6 {[%emt 0:05:56]} 10. Bd2 {[%emt 0:00:28]} d5 {[%emt 0:23:05]} 11. Rb1 {[%emt 0:04:05]} dxc4 {[%emt 0:18:27]} (11... a5 $11) 12. dxc4 {[%emt 0:00:21]} Na5 {[%emt 0:04:24]} 13. b3 {[%emt 0:03:03]} Nac6 {[%emt 0:16:16]} 14. Qc1 {[%emt 0:06:20]} Kh7 {[%emt 0:00:31]} 15. Rd1 $16 {[%emt 0:01:37]} Nd4 {[%emt 0:05:29]} 16. b4 {[%emt 0:10:59]} Nec6 {[%emt 0:00:37]} 17. bxc5 {[%emt 0:03:33]} Qe7 {[%emt 0:06:46]} 18. Nxd4 {[%emt 0:01:56]} Nxd4 {[%emt 0:00:11]} 19. e3 {[%emt 0:01:01]} Nc6 {[%emt 0:00:19]} 20. Ne4 {[%emt 0:01:41]} Qc7 {[%emt 0:01:12]} 21. Nd6 {[%emt 0:03:36]} e5 {[%emt 0:00:32]} 22. Bc3 {[%emt 0:04:52]} Nd8 {[%emt 0:03:15]} 23. Qb2 {[%emt 0:04:29]} Bf5 {[%emt 0:02:11]} 24. Nxf5 {[%emt 0:01:26]} gxf5 {[%emt 0:00:06]} 25. Qc2 {[%emt 0:00:27]} e4 {[%emt 0:01:08]} 26. Rd5 {[%emt 0:01:44]} Ne6 {[%emt 0:00:22]} 27. Rxf5 {[%emt 0:01:14]} Bxc3 {[%emt 0:00:21]} 28. Bxe4 {[%emt 0:02:31]} Bg7 {[%emt 0:00:22]} 29. Rxf7+ {[%emt 0:00:29]} 1-0

[Event "FIN-ch 2018"]
[Site "Helsinki"]
[Date "2018.06.19"]
[Round "9"]
[White "Koykka, Pekka"]
[Black "Sipila, Vilka"]
[Result "1-0"]
[ECO "A48"]
[WhiteElo "2345"]
[BlackElo "2383"]
[Annotator "NA"]
[PlyCount "77"]
[EventDate "2018.06.13"]
[EventType "tourn"]
[EventCountry "FIN"]
[SourceTitle "playchess.com"]
[Source "ChessBase"]
[SourceQuality "1"]
[TimeControl "40/5400+30:1800+30"]

1. d4 {[%emt 0:00:00]} Nf6 {[%emt 0:02:40]} 2. Nf3 {[%emt 0:00:00]} g6 {[%emt 0:00:06]} 3. Bf4 {[%emt 0:00:00]} Bg7 {[%emt 0:00:05]} 4. e3 {[%emt 0:00:09]} O-O {[%emt 0:00:08]} 5. Be2 {[%emt 0:00:28] LiveBook: 1085 Games} d6 {[%emt 0:01:40]} 6. O-O {[%emt 0:06:48]} Nh5 {[%emt 0:03:15]} 7. Bg5 {[%emt 0:00:51]} h6 {[%emt 0:00:11]} 8. Bh4 {[%emt 0:00:05]} g5 {[%emt 0:00:05]} 9. Nfd2 {[%emt 0:01:00]} gxh4 {[%emt 0:06:14]} 10. Bxh5 {[%emt 0:00:08]} e5 {[%emt 0:00:11]} 11. c3 {[%emt 0:01:36]} Nd7 {[%emt 0:06:58]} 12. Bf3 {[%emt 0:02:41]} Kh8 {[%emt 0:08:28]} 13. Na3 {[%emt 0:07:14]} f5 $11 {[%emt 0:03:31]} 14. dxe5 {[%emt 0:11:34]} Nxe5 {[%emt 0:03:36]} 15. Be2 {[%emt 0:06:19]} f4 {[%emt 0:02:08]} 16. exf4 {[%emt 0:05:02]} Rxf4 {[%emt 0:00:10]} 17. Nac4 {[%emt 0:00:56]} Nxc4 {[%emt 0:11:03]} 18. Nxc4 {[%emt 0:00:20]} Qg5 {[%emt 0:00:59]} 19. Ne3 {[%emt 0:02:23]} Be5 {[%emt 0:01:41]} 20. Qd3 {[%emt 0:26:53]} Be6 {[%emt 0:09:53]} 21. g3 {[%emt 0:07:08]} hxg3 {[%emt 0:26:06]} 22. hxg3 {[%emt 0:03:24]} Rh4 {[%emt 0:08:04]} 23. Ng2 {[%emt 0:01:30]} Rh3 {[%emt 0:00:03]} 24. f4 {[%emt 0:01:40]} Qg8 {[%emt 0:04:41]} 25. fxe5 {[%emt 0:08:43]} Rxg3 {[%emt 0:00:04]} 26. Bf3 {[%emt 0:00:12]} Rf8 {[%emt 0:00:58]} 27. Qd2 {[%emt 0:02:03]} Qg7 {[%emt 0:00:30]} 28. Bxb7 {[%emt 0:01:28]} d5 {[%emt 0:00:29]} 29. Rxf8+ {[%emt 0:00:30]} Qxf8 {[%emt 0:00:01]} 30. Rf1 {[%emt 0:00:52]} Qg7 {[%emt 0:01:01]} 31. Rf6 {[%emt 0:00:49]} Rg6 {[%emt 0:00:30]} 32. Bxd5 {[%emt 0:01:08]} Rxf6 {[%emt 0:00:29]} 33. exf6 {[%emt 0:00:13]} Qxf6 {[%emt 0:00:02]} 34. Bxe6 {[%emt 0:00:52]} Qxe6 {[%emt 0:00:01]} 35. Qd8+ {[%emt 0:00:39]} Kg7 {[%emt 0:00:03]} 36. Qxc7+ {[%emt 0:00:07]} Kf6 {[%emt 0:00:02]} 37. Qxa7 {[%emt 0:00:26]} h5 {[%emt 0:00:03]} 38. Qd4+ {[%emt 0:00:12]} Kg5 {[%emt 0:00:04]} 39. Qe3+ {[%emt 0:00:25]} 1-0

[Event "FIN-ch 2018"]
[Site "Helsinki"]
[Date "2018.06.19"]
[Round "9"]
[White "Nyysti, Sampsa"]
[Black "Luukkonen, Tommi"]
[Result "1-0"]
[ECO "B23"]
[WhiteElo "2322"]
[BlackElo "2349"]
[Annotator "NA"]
[PlyCount "45"]
[EventDate "2018.06.13"]
[EventType "tourn"]
[EventCountry "FIN"]
[SourceTitle "playchess.com"]
[Source "ChessBase"]
[SourceQuality "1"]
[TimeControl "40/5400+30:1800+30"]

{[%evp 18,45,55,32,50,77,100,67,56,15,86,32767,32767,32767,32767,32767,349,385,32767,32767,32767,32767,618,629,633,32767,32767,32767,865,1140]} 1. e4 {[%emt 0:00:00]} c5 {[%emt 0:00:33]} 2. Nc3 {[%emt 0:00:00]} d6 {[%emt 0:01:30]} 3. Nge2 {[%emt 0:00:00]} a6 {[%emt 0:00:30]} 4. g3 {[%emt 0:06:14]} b5 {[%emt 0:02:20]} 5. Bg2 {[%emt 0:01:10]} Bb7 {[%emt 0:00:06]} 6. O-O {[%emt 0:00:51]} Nf6 {[%emt 0:06:44]} 7. d4 {[%emt 0:03:12]} cxd4 {[%emt 0:00:45]} 8. Nxd4 {[%emt 0:00:02]} e6 {[%emt 0:05:37]} 9. Re1 {[%emt 0:01:31] B91: Sicilian Najdorf: 6 g3} Qd7 {[%emt 0:02:37]} (9... Nbd7 10. e5 Bxg2 11. exf6 Bb7 12. fxg7 Bxg7 13. Nxe6 fxe6 14. Rxe6+ Kf8 15. Rxd6 Qc8 16. Rxd7 Qc6 17. Qd5 Qxd5 18. Nxd5 Bc6 19. Rd6 Rc8 20. Nb6 Rc7 21. Bf4 Bxb2 22. Re1 Kf7 23. Rde6 {1-0 (23) Artemiev,V (2691)-Korobov,A (2652) Riadh 2017}) 10. g4 $146 {[%emt 0:13:45]} ({Predecessor:} 10. a4 b4 11. Na2 a5 12. Nb5 Nc6 13. c3 bxc3 14. Naxc3 Be7 15. Bf4 Rd8 16. Rc1 Nb4 {1-0 (30) Kalegin,E (2481)-Rychagov,A (2571) Kazan 2007}) 10... b4 {[%emt 0:05:12]} 11. Nd5 {[%emt 0:00:45]} exd5 {[%emt 0:00:40]} 12. exd5+ {[%emt 0:00:06]} Kd8 {[%emt 0:00:05]} ({Nicht} 12... Be7 $2 13. Nf5 $18) 13. Nf5 {[%emt 0:00:30]} (13. Bg5 $16) 13... h5 {[%emt 0:02:06]} (13... a5 $1 $11) 14. Bg5 {[%emt 0:06:01]} Qb5 {[%emt 0:10:55]} 15. c4 {[%emt 0:11:52]} Qa5 {[%emt 0:04:34]} 16. a3 {[%emt 0:15:15]} Nbd7 {[%emt 0:01:12]} (16... hxg4 {ist wohl besser.} 17. Qe2 Qb6) 17. axb4 {[%emt 0:01:32]} Qb6 {[%emt 0:00:51]} 18. Be3 {[%emt 0:03:33]} Qc7 {[%emt 0:00:06]} 19. g5 {[%emt 0:01:28]} g6 {[%emt 0:05:16]} 20. Nd4 {[%emt 0:00:59]} Ng4 {[%emt 0:00:58]} 21. Nc6+ {[%emt 0:02:46]} Bxc6 {[%emt 0:01:31]} 22. dxc6 {[%emt 0:00:02]} Nxe3 {[%emt 0:08:31]} 23. Rxe3 $18 {[%emt 0:00:08]} 1-0